[Event "Titled Tuesday Blitz October 31 Late 2023"]
[White "Przybylski, Wojciech"]
[Black "Howell, David W L"]
[WhiteFideId "1117599"]
[BlackFideId "410608"]
[WhiteElo "2575"]
[BlackElo "2975"]
[Result "0-1"]
[Round "10"]
[TimeControl "180+1"]
[Date "2023.10.31"]
[WhiteClock "0:00:00"]
[BlackClock "0:00:27"]
[Board "38"]

1. e4 {[%clk 0:02:33]}  c5 {[%clk 0:02:59]} 2. Nf3 {[%clk 0:02:32]}  Nc6 {[%clk 0:02:58]} 3. d4 {[%clk 0:02:32]}  cxd4 {[%clk 0:02:58]} 4. Nxd4 {[%clk 0:02:33]}  Nf6 {[%clk 0:02:57]} 5. Nc3 {[%clk 0:02:33]}  e6 {[%clk 0:02:57]} 6. Ndb5 {[%clk 0:02:33]}  Bb4 {[%clk 0:02:53]} 7. a3 {[%clk 0:02:33]}  Bxc3+ {[%clk 0:02:52]} 8. Nxc3 {[%clk 0:02:33]}  d5 {[%clk 0:02:53]} 9. exd5 {[%clk 0:02:33]}  exd5 {[%clk 0:02:54]} 10. Bd3 {[%clk 0:02:34]}  O-O {[%clk 0:02:53]} 11. O-O {[%clk 0:02:34]}  d4 {[%clk 0:02:54]} 12. Ne2 {[%clk 0:02:33]}  Bg4 {[%clk 0:02:53]} 13. h3 {[%clk 0:02:34]}  Bh5 {[%clk 0:02:53]} 14. Re1 {[%clk 0:02:32]}  Re8 {[%clk 0:02:26]} 15. Bf4 {[%clk 0:02:27]}  Nd5 {[%clk 0:02:19]} 16. Bg3 {[%clk 0:02:26]}  Qb6 {[%clk 0:02:15]} 17. Rb1 {[%clk 0:02:22]}  Rad8 {[%clk 0:02:00]} 18. Qd2 {[%clk 0:02:20]}  Bg6 {[%clk 0:01:57]} 19. Bc4 {[%clk 0:02:15]}  Qc5 {[%clk 0:01:52]} 20. Bb3 {[%clk 0:02:08]}  h6 {[%clk 0:01:43]} 21. Rbc1 {[%clk 0:01:58]}  Nf6 {[%clk 0:01:39]} 22. f3 {[%clk 0:01:47]}  d3+ {[%clk 0:01:28]} 23. Bf2 {[%clk 0:01:45]}  dxe2 {[%clk 0:01:29]} 24. Qxd8 {[%clk 0:01:38]}  Qxf2+ {[%clk 0:01:28]} 25. Kxf2 {[%clk 0:01:37]}  Rxd8 {[%clk 0:01:28]} 26. Rxe2 {[%clk 0:01:31]}  Kf8 {[%clk 0:01:28]} 27. c3 {[%clk 0:01:29]}  Bf5 {[%clk 0:01:06]} 28. g4 {[%clk 0:01:26]}  Bc8 {[%clk 0:01:03]} 29. Rce1 {[%clk 0:01:25]}  g5 {[%clk 0:00:59]} 30. Kg3 {[%clk 0:01:24]}  h5 {[%clk 0:00:55]} 31. f4 {[%clk 0:01:19]}  gxf4+ {[%clk 0:00:52]} 32. Kxf4 {[%clk 0:01:18]}  hxg4 {[%clk 0:00:52]} 33. hxg4 {[%clk 0:01:18]}  Nxg4 {[%clk 0:00:45]} 34. Rg2 {[%clk 0:01:14]}  f5 {[%clk 0:00:42]} 35. Be6 {[%clk 0:00:58]}  Bxe6 {[%clk 0:00:36]} 36. Rxe6 {[%clk 0:00:58]}  Ne7 {[%clk 0:00:37]} 37. Rge2 {[%clk 0:00:57]}  Rd7 {[%clk 0:00:37]} 38. Kg5 {[%clk 0:00:51]}  Kf7 {[%clk 0:00:37]} 39. c4 {[%clk 0:00:44]}  Nc6 {[%clk 0:00:26]} 40. Rg6 {[%clk 0:00:20]}  Nce5 {[%clk 0:00:25]} 41. Kxf5 {[%clk 0:00:17]}  Nxg6 {[%clk 0:00:24]} 42. Kxg4 {[%clk 0:00:17]}  Kf6 {[%clk 0:00:24]} 43. b3 {[%clk 0:00:13]}  Rd4+ {[%clk 0:00:23]} 44. Kf3 {[%clk 0:00:11]}  Rd3+ {[%clk 0:00:23]} 45. Ke4 {[%clk 0:00:11]}  Rxb3 {[%clk 0:00:23]} 46. Rf2+ {[%clk 0:00:10]}  Ke6 {[%clk 0:00:23]} 47. Kd4 {[%clk 0:00:10]}  Ne7 {[%clk 0:00:23]} 48. Re2+ {[%clk 0:00:09]}  Kd6 {[%clk 0:00:22]} 49. c5+ {[%clk 0:00:08]}  Kd7 {[%clk 0:00:23]} 50. a4 {[%clk 0:00:08]}  Rb4+ {[%clk 0:00:22]} 51. Kc3 {[%clk 0:00:06]}  Rxa4 {[%clk 0:00:23]} 52. Rb2 {[%clk 0:00:06]}  Kc7 {[%clk 0:00:23]} 53. Re2 {[%clk 0:00:06]}  Nc6 {[%clk 0:00:23]} 54. Rh2 {[%clk 0:00:05]}  a5 {[%clk 0:00:24]} 55. Rh7+ {[%clk 0:00:05]}  Kb8 {[%clk 0:00:25]} 56. Rh8+ {[%clk 0:00:05]}  Ka7 {[%clk 0:00:25]} 57. Rh7 {[%clk 0:00:05]}  Rg4 {[%clk 0:00:26]} 58. Rf7 {[%clk 0:00:04]}  Ka6 {[%clk 0:00:26]} 59. Kb3 {[%clk 0:00:04]}  Rb4+ {[%clk 0:00:26]} 60. Kc3 {[%clk 0:00:05]}  a4 {[%clk 0:00:26]} 61. Rf6 {[%clk 0:00:04]}  Rh4 {[%clk 0:00:27]} 62. Rf1 {[%clk 0:00:04]}  Kb5 {[%clk 0:00:26]} 63. Rf5 {[%clk 0:00:03]}  Rc4+ {[%clk 0:00:26]} 64. Kb2 {[%clk 0:00:03]}  Rxc5 {[%clk 0:00:27]} 65. Rf8 {[%clk 0:00:03]}  b6 {[%clk 0:00:27]} 66. Ra8 {[%clk 0:00:03]}  Re5 {[%clk 0:00:28]} 67. Ka3 {[%clk 0:00:03]}  Re3+ {[%clk 0:00:28]} 68. Ka2 {[%clk 0:00:03]}  Kb4 {[%clk 0:00:29]} 69. Ra6 {[%clk 0:00:01]}  Kb5 {[%clk 0:00:28]} 70. Ra8 {[%clk 0:00:02]}  Nb4+ {[%clk 0:00:28]} 71. Kb2 {[%clk 0:00:02]}  Rb3+ {[%clk 0:00:27]} 72. Ka1 {[%clk 0:00:02]}  a3 {[%clk 0:00:28]} 73. Ra5+ {[%clk 0:00:02]}  Kc4 {[%clk 0:00:25]} 74. Rc5+ {[%clk 0:00:02]}  Kd3 {[%clk 0:00:23]} 75. Rd5+ {[%clk 0:00:02]}  Nxd5 {[%clk 0:00:23]} 76. Ka2 {[%clk 0:00:02]}  Rc3 {[%clk 0:00:23]} 77. Kb1 {[%clk 0:00:02]}  b5 {[%clk 0:00:23]} 78. Ka1 {[%clk 0:00:03]}  b4 {[%clk 0:00:24]} 79. Ka2 {[%clk 0:00:03]}  Kc4 {[%clk 0:00:24]} 80. Kb1 {[%clk 0:00:04]}  b3 {[%clk 0:00:24]} 81. Ka1 {[%clk 0:00:04]}  Kc5 {[%clk 0:00:25]} 82. Kb1 {[%clk 0:00:04]}  Kb6 {[%clk 0:00:26]} 83. Ka1 {[%clk 0:00:00]}  Ka6 {[%clk 0:00:27]} 0-1


[Site "https://www.chess.com"]

[Event "Titled Tuesday Blitz October 31 Late 2023"]
[White "Djokic, Mihailo"]
[Black "Blomqvist, Erik"]
[WhiteFideId "976440"]
[BlackFideId "1709437"]
[WhiteElo "2715"]
[BlackElo "2565"]
[Result "1-0"]
[Round "10"]
[TimeControl "180+1"]
[Date "2023.10.31"]
[WhiteClock "0:00:07"]
[BlackClock "0:00:00"]
[Board "39"]

1. e4 {[%clk 0:02:55]}  c5 {[%clk 0:02:59]} 2. Nf3 {[%clk 0:02:55]}  e6 {[%clk 0:03:00]} 3. d4 {[%clk 0:02:55]}  cxd4 {[%clk 0:03:01]} 4. Nxd4 {[%clk 0:02:56]}  Nc6 {[%clk 0:03:01]} 5. Nc3 {[%clk 0:02:56]}  a6 {[%clk 0:03:02]} 6. Be2 {[%clk 0:02:57]}  d6 {[%clk 0:02:53]} 7. O-O {[%clk 0:02:56]}  Nf6 {[%clk 0:02:54]} 8. Be3 {[%clk 0:02:56]}  Be7 {[%clk 0:02:52]} 9. f4 {[%clk 0:02:56]}  Bd7 {[%clk 0:02:51]} 10. Kh1 {[%clk 0:02:55]}  O-O {[%clk 0:02:48]} 11. Qe1 {[%clk 0:02:56]}  Nxd4 {[%clk 0:02:47]} 12. Bxd4 {[%clk 0:02:56]}  b5 {[%clk 0:02:47]} 13. a3 {[%clk 0:02:56]}  Qb8 {[%clk 0:02:45]} 14. Rd1 {[%clk 0:02:55]}  a5 {[%clk 0:02:28]} 15. e5 {[%clk 0:02:53]}  dxe5 {[%clk 0:02:04]} 16. Bxe5 {[%clk 0:02:48]}  Qb7 {[%clk 0:02:03]} 17. Bf3 {[%clk 0:02:44]}  Bc6 {[%clk 0:02:03]} 18. Bxc6 {[%clk 0:01:57]}  Qxc6 {[%clk 0:02:03]} 19. f5 {[%clk 0:01:52]}  b4 {[%clk 0:01:50]} 20. axb4 {[%clk 0:01:28]}  axb4 {[%clk 0:01:50]} 21. Ne2 {[%clk 0:01:23]}  Qxc2 {[%clk 0:01:31]} 22. Nd4 {[%clk 0:01:23]}  Qc4 {[%clk 0:01:27]} 23. b3 {[%clk 0:01:19]}  Qa6 {[%clk 0:01:25]} 24. fxe6 {[%clk 0:01:18]}  fxe6 {[%clk 0:01:25]} 25. Rf3 {[%clk 0:01:11]}  Rf7 {[%clk 0:01:14]} 26. h3 {[%clk 0:01:06]}  Raf8 {[%clk 0:01:11]} 27. Ra1 {[%clk 0:01:05]}  Qc8 {[%clk 0:01:05]} 28. Rc1 {[%clk 0:01:04]}  Qd7 {[%clk 0:01:05]} 29. Rc6 {[%clk 0:01:02]}  Nd5 {[%clk 0:00:58]} 30. Rxf7 {[%clk 0:01:01]}  Rxf7 {[%clk 0:00:59]} 31. Rxe6 {[%clk 0:01:01]}  Bc5 {[%clk 0:00:45]} 32. Ra6 {[%clk 0:00:53]}  Bxd4 {[%clk 0:00:38]} 33. Ra8+ {[%clk 0:00:51]}  Rf8 {[%clk 0:00:36]} 34. Rxf8+ {[%clk 0:00:52]}  Kxf8 {[%clk 0:00:37]} 35. Bxd4 {[%clk 0:00:52]}  Qf5 {[%clk 0:00:26]} 36. Qc1 {[%clk 0:00:45]}  h6 {[%clk 0:00:17]} 37. Qc4 {[%clk 0:00:33]}  Kg8 {[%clk 0:00:14]} 38. Bg1 {[%clk 0:00:26]}  Kh7 {[%clk 0:00:14]} 39. Qc5 {[%clk 0:00:25]}  Qe4 {[%clk 0:00:13]} 40. Qc4 {[%clk 0:00:23]}  Qf5 {[%clk 0:00:04]} 41. Qd4 {[%clk 0:00:20]}  Kg6 {[%clk 0:00:05]} 42. Bf2 {[%clk 0:00:19]}  h5 {[%clk 0:00:04]} 43. Kg1 {[%clk 0:00:18]}  Qe6 {[%clk 0:00:04]} 44. Qd3+ {[%clk 0:00:17]}  Kf7 {[%clk 0:00:03]} 45. Qf3+ {[%clk 0:00:17]}  Kg6 {[%clk 0:00:02]} 46. Qd3+ {[%clk 0:00:16]}  Qf5 {[%clk 0:00:02]} 47. Qd1 {[%clk 0:00:15]}  Qe4 {[%clk 0:00:02]} 48. Kh2 {[%clk 0:00:11]}  Nf4 {[%clk 0:00:02]} 49. Qf1 {[%clk 0:00:07]}  Nd5 {[%clk 0:00:00]} 50. Bg3 {[%clk 0:00:07]} 1-0


[Site "https://www.chess.com"]

[Event "Titled Tuesday Blitz October 31 Late 2023"]
[White "Gubajdullin, Alexei"]
[Black "Aldokhin, Ivan"]
[WhiteFideId "4141202"]
[BlackFideId "24115720"]
[WhiteElo "2690"]
[BlackElo "2552"]
[Result "0-1"]
[Round "10"]
[TimeControl "180+1"]
[Date "2023.10.31"]
[WhiteClock "0:00:00"]
[BlackClock "0:00:06"]
[Board "42"]

1. d4 {[%clk 0:03:00]}  Nf6 {[%clk 0:02:59]} 2. Nf3 {[%clk 0:03:00]}  g6 {[%clk 0:03:00]} 3. Bf4 {[%clk 0:03:00]}  Bg7 {[%clk 0:03:00]} 4. e3 {[%clk 0:03:00]}  O-O {[%clk 0:03:01]} 5. Be2 {[%clk 0:03:01]}  b6 {[%clk 0:03:02]} 6. O-O {[%clk 0:03:01]}  Bb7 {[%clk 0:03:03]} 7. h3 {[%clk 0:03:02]}  c5 {[%clk 0:03:03]} 8. a4 {[%clk 0:03:01]}  a6 {[%clk 0:03:03]} 9. Bh2 {[%clk 0:02:58]}  Ne4 {[%clk 0:02:58]} 10. Nbd2 {[%clk 0:02:54]}  Nxd2 {[%clk 0:02:56]} 11. Qxd2 {[%clk 0:02:52]}  d6 {[%clk 0:02:57]} 12. c3 {[%clk 0:02:47]}  Nd7 {[%clk 0:02:54]} 13. Ne1 {[%clk 0:02:40]}  Nf6 {[%clk 0:02:51]} 14. Bf3 {[%clk 0:02:40]}  Qd7 {[%clk 0:02:48]} 15. Bxb7 {[%clk 0:02:39]}  Qxb7 {[%clk 0:02:48]} 16. Nd3 {[%clk 0:02:36]}  c4 {[%clk 0:02:16]} 17. Qe2 {[%clk 0:02:37]}  cxd3 {[%clk 0:02:16]} 18. Qxd3 {[%clk 0:02:37]}  b5 {[%clk 0:02:13]} 19. axb5 {[%clk 0:02:34]}  axb5 {[%clk 0:02:09]} 20. f3 {[%clk 0:02:27]}  d5 {[%clk 0:01:57]} 21. Kh1 {[%clk 0:02:26]}  b4 {[%clk 0:01:55]} 22. Be5 {[%clk 0:02:23]}  Nd7 {[%clk 0:01:52]} 23. Bxg7 {[%clk 0:02:23]}  Kxg7 {[%clk 0:01:52]} 24. e4 {[%clk 0:02:23]}  bxc3 {[%clk 0:01:50]} 25. bxc3 {[%clk 0:02:23]}  e6 {[%clk 0:01:49]} 26. c4 {[%clk 0:02:16]}  Rxa1 {[%clk 0:01:21]} 27. Rxa1 {[%clk 0:02:15]}  Ra8 {[%clk 0:01:22]} 28. Rc1 {[%clk 0:01:57]}  Nb6 {[%clk 0:01:19]} 29. exd5 {[%clk 0:01:55]}  exd5 {[%clk 0:01:19]} 30. c5 {[%clk 0:01:53]}  Nc4 {[%clk 0:01:18]} 31. Rb1 {[%clk 0:01:53]}  Qe7 {[%clk 0:01:12]} 32. Qb3 {[%clk 0:01:35]}  Qf6 {[%clk 0:00:59]} 33. Qb7 {[%clk 0:01:29]}  Ra2 {[%clk 0:00:37]} 34. Qxd5 {[%clk 0:01:28]}  Rxg2 {[%clk 0:00:37]} 35. f4 {[%clk 0:01:01]}  Ne3 {[%clk 0:00:32]} 36. Qf3 {[%clk 0:00:59]}  Qh4 {[%clk 0:00:22]} 37. Qxe3 {[%clk 0:00:52]}  Rg3 {[%clk 0:00:21]} 38. Qe5+ {[%clk 0:00:46]}  Kh6 {[%clk 0:00:20]} 39. Qg5+ {[%clk 0:00:23]}  Rxg5 {[%clk 0:00:20]} 40. fxg5+ {[%clk 0:00:23]}  Kxg5 {[%clk 0:00:21]} 41. Rg1+ {[%clk 0:00:21]}  Kf5 {[%clk 0:00:18]} 42. Kg2 {[%clk 0:00:18]}  Qe4+ {[%clk 0:00:16]} 43. Kg3 {[%clk 0:00:17]}  Qxd4 {[%clk 0:00:14]} 44. Rf1+ {[%clk 0:00:17]}  Ke6 {[%clk 0:00:14]} 45. Re1+ {[%clk 0:00:17]}  Kd5 {[%clk 0:00:13]} 46. Rf1 {[%clk 0:00:13]}  f5 {[%clk 0:00:12]} 47. Rf4 {[%clk 0:00:12]}  Qxc5 {[%clk 0:00:10]} 48. Kh4 {[%clk 0:00:11]}  Ke5 {[%clk 0:00:08]} 49. Rf1 {[%clk 0:00:08]}  Kf6 {[%clk 0:00:06]} 50. Kg3 {[%clk 0:00:08]}  Qe3+ {[%clk 0:00:05]} 51. Rf3 {[%clk 0:00:08]}  Qe5+ {[%clk 0:00:06]} 52. Kg2 {[%clk 0:00:08]}  g5 {[%clk 0:00:06]} 53. Rb3 {[%clk 0:00:07]}  Qd5+ {[%clk 0:00:06]} 54. Rf3 {[%clk 0:00:06]}  h5 {[%clk 0:00:06]} 55. Kf2 {[%clk 0:00:05]}  g4 {[%clk 0:00:06]} 56. hxg4 {[%clk 0:00:05]}  hxg4 {[%clk 0:00:07]} 57. Re3 {[%clk 0:00:00]}  Kg5 {[%clk 0:00:06]} 0-1


[Site "https://www.chess.com"]

[Event "Titled Tuesday Blitz October 31 Late 2023"]
[White "Fiorito, Francisco"]
[Black "Mindhunter08"]
[WhiteFideId "180165"]
[WhiteElo "2609"]
[BlackElo "2451"]
[Result "1-0"]
[Round "10"]
[TimeControl "180+1"]
[Date "2023.10.31"]
[WhiteClock "0:01:46"]
[BlackClock "0:00:00"]
[Board "50"]

1. d4 {[%clk 0:03:00]}  d5 {[%clk 0:03:00]} 2. Bf4 {[%clk 0:02:59]}  Nf6 {[%clk 0:03:00]} 3. e3 {[%clk 0:02:58]}  c5 {[%clk 0:03:00]} 4. Nf3 {[%clk 0:02:58]}  Nc6 {[%clk 0:03:00]} 5. Nbd2 {[%clk 0:02:59]}  cxd4 {[%clk 0:03:00]} 6. exd4 {[%clk 0:02:59]}  Qb6 {[%clk 0:03:00]} 7. Nb3 {[%clk 0:02:55]}  Bg4 {[%clk 0:02:59]} 8. c3 {[%clk 0:02:54]}  e6 {[%clk 0:02:58]} 9. Bd3 {[%clk 0:02:55]}  Be7 {[%clk 0:02:52]} 10. h3 {[%clk 0:02:54]}  Bh5 {[%clk 0:02:49]} 11. O-O {[%clk 0:02:54]}  O-O {[%clk 0:02:49]} 12. Re1 {[%clk 0:02:53]}  Rac8 {[%clk 0:02:47]} 13. Rb1 {[%clk 0:02:47]}  Rfd8 {[%clk 0:02:37]} 14. Nbd2 {[%clk 0:02:44]}  Bg6 {[%clk 0:02:32]} 15. Bxg6 {[%clk 0:02:44]}  hxg6 {[%clk 0:02:33]} 16. Ne5 {[%clk 0:02:42]}  Nxe5 {[%clk 0:02:31]} 17. Bxe5 {[%clk 0:02:43]}  Nd7 {[%clk 0:02:27]} 18. Bf4 {[%clk 0:02:42]}  Qa6 {[%clk 0:02:23]} 19. a3 {[%clk 0:02:42]}  Nb6 {[%clk 0:02:20]} 20. Nf3 {[%clk 0:02:41]}  Nc4 {[%clk 0:02:20]} 21. Bg5 {[%clk 0:02:41]}  Qd6 {[%clk 0:02:08]} 22. h4 {[%clk 0:02:37]}  a5 {[%clk 0:02:00]} 23. Bxe7 {[%clk 0:02:36]}  Qxe7 {[%clk 0:02:00]} 24. Ng5 {[%clk 0:02:37]}  b5 {[%clk 0:01:54]} 25. Qg4 {[%clk 0:02:37]}  Qf6 {[%clk 0:01:41]} 26. Red1 {[%clk 0:02:29]}  Qf5 {[%clk 0:01:35]} 27. Qg3 {[%clk 0:02:27]}  a4 {[%clk 0:01:01]} 28. Rd3 {[%clk 0:02:23]}  f6 {[%clk 0:00:55]} 29. Nh3 {[%clk 0:02:21]}  Nd2 {[%clk 0:00:50]} 30. Re1 {[%clk 0:02:19]}  Ne4 {[%clk 0:00:49]} 31. Qh2 {[%clk 0:02:09]}  Re8 {[%clk 0:00:42]} 32. Rf3 {[%clk 0:02:07]}  Qg4 {[%clk 0:00:36]} 33. Nf4 {[%clk 0:02:02]}  Nd2 {[%clk 0:00:29]} 34. Rfe3 {[%clk 0:01:56]}  Nc4 {[%clk 0:00:18]} 35. R3e2 {[%clk 0:01:46]}  Kf7 {[%clk 0:00:09]} 36. f3 {[%clk 0:01:45]}  Qf5 {[%clk 0:00:00]} 37. g4 {[%clk 0:01:46]} 1-0


[Site "https://www.chess.com"]

[Event "Titled Tuesday Blitz October 31 Late 2023"]
[White "Kornyukov, Alexey"]
[Black "Tikhonov, Viacheslav"]
[WhiteFideId "4150457"]
[BlackFideId "44196407"]
[WhiteElo "2346"]
[BlackElo "2518"]
[Result "0-1"]
[Round "10"]
[TimeControl "180+1"]
[Date "2023.10.31"]
[WhiteClock "0:00:00"]
[BlackClock "0:00:47"]
[Board "51"]

1. d4 {[%clk 0:02:51]}  Nf6 {[%clk 0:02:59]} 2. c4 {[%clk 0:02:51]}  g6 {[%clk 0:03:00]} 3. f3 {[%clk 0:02:51]}  Bg7 {[%clk 0:02:55]} 4. e4 {[%clk 0:02:50]}  O-O {[%clk 0:02:56]} 5. Nc3 {[%clk 0:02:51]}  c6 {[%clk 0:02:54]} 6. Be3 {[%clk 0:02:15]}  d5 {[%clk 0:02:54]} 7. cxd5 {[%clk 0:02:16]}  cxd5 {[%clk 0:02:54]} 8. e5 {[%clk 0:02:16]}  Ne8 {[%clk 0:02:50]} 9. f4 {[%clk 0:02:15]}  h5 {[%clk 0:02:35]} 10. Be2 {[%clk 0:02:13]}  Bh6 {[%clk 0:02:32]} 11. Nf3 {[%clk 0:02:01]}  Ng7 {[%clk 0:02:31]} 12. Qb3 {[%clk 0:01:40]}  e6 {[%clk 0:02:17]} 13. Bd3 {[%clk 0:00:48]}  Nc6 {[%clk 0:02:16]} 14. O-O {[%clk 0:00:46]}  Bd7 {[%clk 0:02:06]} 15. Nb5 {[%clk 0:00:38]}  Na5 {[%clk 0:01:59]} 16. Qb4 {[%clk 0:00:31]}  Bxb5 {[%clk 0:01:58]} 17. Qxb5 {[%clk 0:00:29]}  a6 {[%clk 0:01:51]} 18. Qb4 {[%clk 0:00:26]}  Nc4 {[%clk 0:01:46]} 19. Bxc4 {[%clk 0:00:20]}  dxc4 {[%clk 0:01:47]} 20. Qxc4 {[%clk 0:00:18]}  Nf5 {[%clk 0:01:46]} 21. Bd2 {[%clk 0:00:18]}  Rc8 {[%clk 0:01:42]} 22. Qd3 {[%clk 0:00:18]}  Qd5 {[%clk 0:01:39]} 23. g3 {[%clk 0:00:11]}  Rfd8 {[%clk 0:01:38]} 24. Bc3 {[%clk 0:00:11]}  Bf8 {[%clk 0:01:33]} 25. Rad1 {[%clk 0:00:10]}  Qxa2 {[%clk 0:01:16]} 26. Ng5 {[%clk 0:00:08]}  Qc4 {[%clk 0:01:04]} 27. Qf3 {[%clk 0:00:05]}  Nxd4 {[%clk 0:00:57]} 28. Bxd4 {[%clk 0:00:03]}  Rxd4 {[%clk 0:00:58]} 29. Rxd4 {[%clk 0:00:01]}  Qxd4+ {[%clk 0:00:58]} 30. Kh1 {[%clk 0:00:00]}  Qxb2 {[%clk 0:00:47]} 0-1


[Site "https://www.chess.com"]

[Event "Titled Tuesday Blitz October 31 Late 2023"]
[White "Ankerst, Mihael"]
[Black "Ardelean, George-Catalin"]
[WhiteFideId "14602369"]
[BlackFideId "1207091"]
[WhiteElo "2446"]
[BlackElo "2720"]
[Result "0-1"]
[Round "10"]
[TimeControl "180+1"]
[Date "2023.10.31"]
[WhiteClock "0:00:00"]
[BlackClock "0:00:15"]
[Board "52"]

1. e4 {[%clk 0:02:58]}  c5 {[%clk 0:02:59]} 2. Nf3 {[%clk 0:02:58]}  Nc6 {[%clk 0:02:57]} 3. d4 {[%clk 0:02:58]}  cxd4 {[%clk 0:02:57]} 4. Nxd4 {[%clk 0:02:58]}  Nf6 {[%clk 0:02:58]} 5. Nc3 {[%clk 0:02:58]}  d6 {[%clk 0:02:58]} 6. Bc4 {[%clk 0:02:57]}  Qb6 {[%clk 0:02:57]} 7. Nxc6 {[%clk 0:02:56]}  bxc6 {[%clk 0:02:56]} 8. O-O {[%clk 0:02:57]}  g6 {[%clk 0:02:50]} 9. e5 {[%clk 0:02:56]}  dxe5 {[%clk 0:02:45]} 10. Qe2 {[%clk 0:02:56]}  Qc7 {[%clk 0:02:26]} 11. f4 {[%clk 0:02:55]}  e4 {[%clk 0:02:20]} 12. Be3 {[%clk 0:02:42]}  Bg7 {[%clk 0:02:17]} 13. Bd4 {[%clk 0:02:43]}  O-O {[%clk 0:02:16]} 14. Nxe4 {[%clk 0:02:42]}  Nxe4 {[%clk 0:02:13]} 15. Bxg7 {[%clk 0:02:39]}  Kxg7 {[%clk 0:02:13]} 16. Qxe4 {[%clk 0:02:39]}  Bf5 {[%clk 0:02:11]} 17. Qd4+ {[%clk 0:02:19]}  f6 {[%clk 0:02:11]} 18. Bb3 {[%clk 0:02:12]}  Rfd8 {[%clk 0:02:01]} 19. Qc5 {[%clk 0:02:07]}  Qb6 {[%clk 0:02:00]} 20. Qf2 {[%clk 0:02:00]}  Rd2 {[%clk 0:01:58]} 21. Qxb6 {[%clk 0:01:53]}  axb6 {[%clk 0:01:59]} 22. Rf2 {[%clk 0:01:53]}  Rad8 {[%clk 0:01:58]} 23. Re1 {[%clk 0:01:48]}  Kf8 {[%clk 0:01:49]} 24. Ree2 {[%clk 0:01:47]}  Rd1+ {[%clk 0:01:45]} 25. Rf1 {[%clk 0:01:47]}  Bg4 {[%clk 0:01:35]} 26. Rf2 {[%clk 0:01:46]}  Rxf1+ {[%clk 0:01:32]} 27. Rxf1 {[%clk 0:01:46]}  Be2 {[%clk 0:01:27]} 28. Re1 {[%clk 0:01:44]}  Rd2 {[%clk 0:01:27]} 29. Kf2 {[%clk 0:01:28]}  Bb5+ {[%clk 0:01:22]} 30. Kg3 {[%clk 0:01:27]}  h5 {[%clk 0:01:10]} 31. h4 {[%clk 0:01:23]}  Ba6 {[%clk 0:01:06]} 32. Re3 {[%clk 0:00:56]}  c5 {[%clk 0:01:03]} 33. Rc3 {[%clk 0:00:55]}  Bb7 {[%clk 0:01:01]} 34. Bc4 {[%clk 0:00:42]}  Rxg2+ {[%clk 0:00:58]} 35. Kh3 {[%clk 0:00:42]}  Rd2 {[%clk 0:00:43]} 36. a4 {[%clk 0:00:41]}  Be4 {[%clk 0:00:38]} 37. Bb3 {[%clk 0:00:26]}  Rd4 {[%clk 0:00:23]} 38. a5 {[%clk 0:00:22]}  bxa5 {[%clk 0:00:23]} 39. Rxc5 {[%clk 0:00:23]}  a4 {[%clk 0:00:24]} 40. Bc4 {[%clk 0:00:23]}  Bf5+ {[%clk 0:00:24]} 41. Kg3 {[%clk 0:00:23]}  Bxc2 {[%clk 0:00:23]} 42. Be6 {[%clk 0:00:14]}  Bb3 {[%clk 0:00:22]} 43. Bxb3 {[%clk 0:00:10]}  axb3 {[%clk 0:00:23]} 44. Rc3 {[%clk 0:00:10]}  Rb4 {[%clk 0:00:22]} 45. Rf3 {[%clk 0:00:07]}  Kf7 {[%clk 0:00:21]} 46. Re3 {[%clk 0:00:05]}  e6 {[%clk 0:00:20]} 47. Rc3 {[%clk 0:00:05]}  e5 {[%clk 0:00:20]} 48. fxe5 {[%clk 0:00:05]}  fxe5 {[%clk 0:00:21]} 49. Rc6 {[%clk 0:00:03]}  Rg4+ {[%clk 0:00:20]} 50. Kh3 {[%clk 0:00:03]}  Rd4 {[%clk 0:00:20]} 51. Rc3 {[%clk 0:00:01]}  Rb4 {[%clk 0:00:18]} 52. Rc6 {[%clk 0:00:02]}  e4 {[%clk 0:00:15]} 53. Kg3 {[%clk 0:00:02]}  e3 {[%clk 0:00:16]} 54. Rc3 {[%clk 0:00:00]}  Re4 {[%clk 0:00:15]} 0-1


[Site "https://www.chess.com"]